[Event "ONJK DE"]
[Site "Enschede, Netherlands"]
[Date "2022.08.10"]
[Round "5.3"]
[White "Verwer, Oscar"]
[Black "Frederiks, Jesse"]
[Result "1/2-1/2"]
[TimeControl "40min + 30sec/move"]
[WhiteElo "1361"]
[BlackElo "1302"]

1. e4 {[%clk 00:40:59]} e6 {[%clk 00:40:59]} {[%emt 00:00:02]} 2. Nf3 {[%clk
00:41:23]} {[%emt 00:00:06]} d5 {[%clk 00:41:18]} {[%emt 00:00:11]} 3. e5
{[%clk 00:41:48]} {[%emt 00:00:05]} c5 {[%clk 00:41:40]} {[%emt 00:00:08]} 4.
b4 {[%clk 00:42:13]} {[%emt 00:00:05]} Nc6 {[%clk 00:41:02]} {[%emt 00:01:07]}
5. bxc5 {[%clk 00:42:22]} {[%emt 00:00:22]} Bxc5 {[%clk 00:41:17]} {[%emt
00:00:14]} 6. d4 {[%clk 00:42:42]} {[%emt 00:00:11]} Bb6 {[%clk 00:41:24]}
{[%emt 00:00:23]} 7. c3 {[%clk 00:42:57]} {[%emt 00:00:15]} Nge7 {[%clk
00:40:56]} {[%emt 00:00:58]} 8. Bd3 {[%clk 00:43:01]} {[%emt 00:00:26]} Bd7
{[%clk 00:40:25]} {[%emt 00:01:01]} 9. O-O {[%clk 00:42:32]} {[%emt 00:00:59]}
Rc8 {[%clk 00:38:27]} {[%emt 00:02:27]} 10. Bd2 {[%clk 00:36:00]} {[%emt
00:07:03]} Ng6 {[%clk 00:31:54]} {[%emt 00:07:02]} 11. Na3 {[%clk 00:30:58]}
{[%emt 00:05:33]} Nce7 {[%clk 00:27:09]} {[%emt 00:05:14]} 12. Rc1 {[%clk
00:28:32]} {[%emt 00:02:56]} O-O {[%clk 00:21:54]} {[%emt 00:05:45]} 13. Ne1
{[%emt 00:09:31]} Ba5 {[%clk 00:15:10]} {[%emt 00:07:01]} 14. f4 {[%clk
00:18:08]} {[%emt 00:02:06]} f5 {[%clk 00:09:06]} {[%emt 00:06:34]} 15. Nb5
{[%clk 00:12:35]} {[%emt 00:06:04]} Bxb5 {[%clk 00:08:35]} {[%emt 00:01:01]} 16.
Bxb5 {[%clk 00:12:54]} {[%emt 00:00:11]} a6 {[%clk 00:07:11]} {[%emt 00:01:54]}
17. Be2 {[%clk 00:11:53]} {[%emt 00:01:31]} Kh8 {[%clk 00:05:28]} {[%emt
00:02:12]} 18. c4 {[%clk 00:10:59]} {[%emt 00:01:25]} Bxd2 {[%clk 00:04:24]}
{[%emt 00:01:34]} 19. Qxd2 {[%clk 00:11:13]} {[%emt 00:00:15]} Qd7 {[%clk
00:03:58]} {[%emt 00:00:56]} 20. Nf3 {[%clk 00:10:18]} {[%emt 00:01:26]} Rc7
{[%clk 00:03:47]} {[%emt 00:00:42]} 21. cxd5 {[%clk 00:09:52]} {[%emt
00:00:56]} Nxd5 {[%clk 00:04:03]} {[%emt 00:00:13]} 22. Rxc7 {[%clk 00:10:10]}
{[%emt 00:00:12]} Qxc7 {[%clk 00:04:25]} {[%emt 00:00:08]} 23. Rc1 {[%clk
00:10:19]} {[%emt 00:00:21]} Qb6 {[%clk 00:04:28]} {[%emt 00:00:27]} 24. g3
{[%clk 00:10:11]} {[%emt 00:00:38]} Nge7 {[%clk 00:03:57]} {[%emt 00:01:01]} 25.
Bd3 {[%clk 00:05:53]} {[%emt 00:04:48]} Nc6 {[%clk 00:03:51]} {[%emt 00:00:36]}
26. Rb1 {[%clk 00:06:05]} {[%emt 00:00:18]} Qa7 {[%clk 00:02:57]} {[%emt
00:01:23]} 27. Qb2 {[%clk 00:06:04]} {[%emt 00:00:32]} Rb8 {[%clk 00:02:58]}
{[%emt 00:00:29]} 28. Bc4 {[%clk 00:05:37]} {[%emt 00:00:57]} Nce7 {[%clk
00:02:41]} {[%emt 00:00:47]} 29. Ng5 {[%clk 00:05:27]} {[%emt 00:00:40]} b5
{[%clk 00:02:17]} {[%emt 00:00:54]} 30. Nxe6 {[%clk 00:04:52]} {[%emt
00:01:05]} Rb6 {[%clk 00:02:13]} {[%emt 00:00:34]} 31. Bxd5 {[%clk 00:05:04]}
{[%emt 00:00:18]} Nxd5 {[%clk 00:02:23]} {[%emt 00:00:19]} 32. Qb3 {[%clk
00:04:21]} {[%emt 00:01:13]} Rxe6 {[%clk 00:01:01]} {[%emt 00:01:51]} 33. Qxd5
{[%clk 00:04:45]} {[%emt 00:00:06]} Re8 {[%clk 00:01:20]} {[%emt 00:00:10]} 34.
Rd1 {[%clk 00:04:43]} {[%emt 00:00:34]} Qc7 {[%clk 00:01:03]} {[%emt 00:00:47]}
35. Qb3 {[%clk 00:04:45]} {[%emt 00:00:28]} Qb6 {[%clk 00:01:01]} {[%emt
00:00:31]} 36. Kf1 {[%clk 00:04:26]} {[%emt 00:00:50]} b4 {[%clk 00:00:53]}
{[%emt 00:00:38]} 37. Qf7 {[%clk 00:04:19]} {[%emt 00:00:37]} Qb5+ {[%clk
00:00:48]} {[%emt 00:00:34]} 38. Ke1 {[%clk 00:04:17]} {[%emt 00:00:33]} Qc6
{[%clk 00:01:06]} {[%emt 00:00:12]} 39. Qxf5 {[%clk 00:01:40]} {[%emt
00:03:07]} Qh1+ {[%clk 00:01:03]} {[%emt 00:00:32]} 40. Kd2 {[%clk 00:02:04]}
{[%emt 00:00:07]} Qg2+ {[%clk 00:01:05]} {[%emt 00:00:28]} 41. Kc1 {[%clk
00:02:09]} {[%emt 00:00:25]} Qc6+ {[%clk 00:01:11]} {[%emt 00:00:23]} 42. Qc2
{[%clk 00:02:25]} {[%emt 00:00:14]} Qa8 {[%clk 00:00:54]} {[%emt 00:00:48]} 43.
d5 {[%clk 00:02:29]} {[%emt 00:00:26]} Rc8 {[%clk 00:01:11]} {[%emt 00:00:13]}
44. Qxc8+ {[%clk 00:02:54]} {[%emt 00:00:05]} Qxc8+ {[%clk 00:01:35]} {[%emt
00:00:06]} 45. Kb1 {[%clk 00:03:06]} {[%emt 00:00:18]} Qf5+ {[%clk 00:00:56]}
{[%emt 00:01:09]} 46. Kb2 {[%clk 00:03:25]} {[%emt 00:00:11]} Qe4 {[%clk
00:01:08]} {[%emt 00:00:18]} 47. Rd2 {[%clk 00:02:54]} {[%emt 00:01:01]} Qc4
{[%clk 00:01:01]} {[%emt 00:00:37]} 48. Rc2 {[%clk 00:03:02]} {[%emt 00:00:22]}
Qd4+ {[%clk 00:01:23]} {[%emt 00:00:08]} 49. Kb1 {[%clk 00:03:18]} {[%emt
00:00:14]} Kg8 {[%clk 00:00:53]} {[%emt 00:01:00]} 50. d6 {[%clk 00:02:18]}
{[%emt 00:01:30]} Qd3 {[%clk 00:00:44]} {[%emt 00:00:39]} 51. e6 {[%clk
00:02:18]} {[%emt 00:00:30]} Qd1+ {[%clk 00:00:36]} {[%emt 00:00:39]} 52. Kb2
{[%clk 00:02:18]} {[%emt 00:00:30]} Qd4+ {[%clk 00:00:55]} {[%emt 00:00:10]} 53.
Kb1 {[%clk 00:02:40]} {[%emt 00:00:08]} Qd1+ {[%clk 00:01:10]} {[%emt
00:00:15]} 54. Kb2 {[%clk 00:03:00]} {[%emt 00:00:10]} Qd4+ {[%clk 00:01:33]}
{[%emt 00:00:07]} 1/2-1/2

[Event "ONJK DE"]
[Site "Enschede, Netherlands"]
[Date "2022.08.10"]
[Round "5.4"]
[White "Meert, Maarin"]
[Black "Decraene, Lotus"]
[Result "1/2-1/2"]
[TimeControl "40min + 30sec/move"]
[WhiteElo "1299"]
[BlackElo "1332"]

1. c4 {[%clk 00:40:58]} {[%emt 00:00:01]} c5 {[%clk 00:40:53]} {[%emt
00:00:08]} 2. Nc3 {[%clk 00:41:21]} {[%emt 00:00:07]} d6 {[%clk 00:41:26]}
{[%emt 00:00:29]} 3. Nf3 {[%clk 00:42:05]} {[%emt 00:00:14]} g6 {[%clk
00:41:25]} {[%emt 00:00:31]} 4. e3 {[%clk 00:42:11]} {[%emt 00:00:24]} Bg7
{[%clk 00:41:34]} {[%emt 00:00:21]} 5. d4 {[%clk 00:42:06]} {[%emt 00:00:35]}
cxd4 {[%clk 00:41:41]} {[%emt 00:00:23]} 6. exd4 {[%clk 00:42:29]} {[%emt
00:00:06]} Nc6 {[%clk 00:42:02]} {[%emt 00:00:09]} 7. Be3 {[%clk 00:41:55]}
{[%emt 00:01:05]} e5 {[%clk 00:41:08]} {[%emt 00:01:24]} 8. d5 {[%clk
00:41:52]} {[%emt 00:00:33]} Nce7 {[%clk 00:41:01]} {[%emt 00:00:36]} 9. Bd3
{[%clk 00:41:33]} {[%emt 00:00:50]} f5 {[%clk 00:40:39]} {[%emt 00:00:53]} 10.
Bc2 {[%clk 00:40:12]} {[%emt 00:01:50]} Nf6 {[%clk 00:40:28]} {[%emt 00:00:41]}
11. O-O {[%clk 00:39:20]} {[%emt 00:01:22]} b6 {[%clk 00:40:14]} {[%emt
00:00:44]} 12. Re1 {[%clk 00:37:27]} {[%emt 00:02:23]} O-O {[%clk 00:40:24]}
{[%emt 00:00:20]} 13. a3 {[%clk 00:35:53]} {[%emt 00:02:04]} Bb7 {[%clk
00:39:47]} {[%emt 00:01:06]} 14. Ng5 {[%clk 00:35:56]} {[%emt 00:00:28]} Bc8
{[%clk 00:39:46]} {[%emt 00:00:31]} 15. f4 {[%clk 00:33:59]} {[%emt 00:02:26]}
Ng4 {[%clk 00:33:13]} {[%emt 00:07:03]} 16. fxe5 {[%clk 00:31:26]} {[%emt
00:03:03]} Nxe5 {[%clk 00:32:59]} {[%emt 00:00:45]} 17. Bd4 {[%clk 00:30:09]}
{[%emt 00:01:47]} Nxd5 {[%emt 00:02:33]} 18. Bxe5 {[%clk 00:28:40]} {[%emt
00:01:55]} Nxc3 {[%clk 00:27:29]} {[%emt 00:04:00]} 19. bxc3 {[%clk 00:28:55]}
{[%emt 00:00:16]} Bxe5 {[%clk 00:25:41]} {[%emt 00:02:18]} 20. Qd5+ {[%clk
00:27:30]} {[%emt 00:01:55]} Kg7 {[%clk 00:25:30]} {[%emt 00:00:41]} 21. Qxa8
{[%clk 00:26:57]} {[%emt 00:01:03]} Bxc3 {[%clk 00:24:53]} {[%emt 00:01:06]} 22.
Nf3 {[%clk 00:25:59]} {[%emt 00:01:28]} Bxa1 {[%clk 00:24:54]} {[%emt
00:00:30]} 23. Rxa1 {[%clk 00:26:16]} {[%emt 00:00:13]} Qc7 {[%clk 00:25:08]}
{[%emt 00:00:16]} 24. Qd5 {[%clk 00:25:47]} {[%emt 00:00:59]} Bb7 {[%clk
00:25:13]} {[%emt 00:00:25]} 25. Qd4+ {[%clk 00:25:16]} {[%emt 00:01:01]} Kg8
{[%clk 00:25:39]} {[%emt 00:00:03]} 26. Bb3 {[%clk 00:22:48]} {[%emt 00:02:59]}
Qc5 {[%clk 00:24:47]} {[%emt 00:01:23]} 27. Qxc5 {[%clk 00:21:03]} {[%emt
00:02:14]} dxc5 {[%clk 00:25:15]} {[%emt 00:00:02]} 28. Rd1 {[%clk 00:20:26]}
{[%emt 00:01:07]} Bxf3 {[%clk 00:25:11]} {[%emt 00:00:34]} 29. gxf3 {[%clk
00:20:50]} {[%emt 00:00:06]} Rf7 {[%clk 00:25:27]} {[%emt 00:00:14]} 30. Ba4
{[%clk 00:17:58]} {[%emt 00:03:22]} Kg7 {[%clk 00:25:03]} {[%emt 00:00:54]} 31.
Rd7 {[%clk 00:17:31]} {[%emt 00:00:57]} Rxd7 {[%clk 00:25:32]} 32. Bxd7 {[%clk
00:17:50]} {[%emt 00:00:12]} Kf6 {[%clk 00:25:50]} {[%emt 00:00:12]} 33. f4
{[%clk 00:16:51]} {[%emt 00:01:28]} h6 {[%clk 00:26:12]} {[%emt 00:00:08]} 34.
h4 {[%clk 00:17:01]} {[%emt 00:00:20]} g5 {[%clk 00:26:30]} {[%emt 00:00:13]}
35. hxg5+ {[%clk 00:17:03]} {[%emt 00:00:27]} hxg5 {[%clk 00:26:58]} {[%emt
00:00:02]} 36. fxg5+ {[%clk 00:17:25]} {[%emt 00:00:08]} Kxg5 {[%clk 00:27:27]}
37. Kf2 {[%clk 00:17:36]} {[%emt 00:00:18]} Kf4 {[%clk 00:27:56]} {[%emt
00:00:02]} 38. Ke2 {[%clk 00:16:43]} {[%emt 00:01:23]} Ke4 {[%clk 00:28:20]}
{[%emt 00:00:07]} 39. Bc6+ {[%clk 00:15:25]} {[%emt 00:01:47]} Kf4 {[%clk
00:26:57]} {[%emt 00:01:52]} 40. Kf2 {[%clk 00:14:59]} {[%emt 00:00:56]} Ke5
{[%clk 00:27:07]} {[%emt 00:00:21]} 41. Ke3 {[%clk 00:15:00]} {[%emt 00:00:29]}
f4+ {[%clk 00:27:28]} {[%emt 00:00:09]} 42. Kd3 {[%clk 00:14:53]} {[%emt
00:00:37]} Kf5 {[%clk 00:27:47]} {[%emt 00:00:12]} 43. Bf3 {[%clk 00:13:11]}
{[%emt 00:02:11]} Ke5 {[%clk 00:28:07]} {[%emt 00:00:10]} 44. Bg4 {[%clk
00:12:46]} {[%emt 00:00:55]} a6 {[%clk 00:28:09]} {[%emt 00:00:27]} 45. a4
{[%clk 00:12:37]} {[%emt 00:00:40]} Kd6 {[%clk 00:27:19]} {[%emt 00:01:20]} 46.
Ke4 {[%clk 00:12:28]} {[%emt 00:00:39]} Kc6 {[%clk 00:27:47]} {[%emt 00:00:02]}
47. Kxf4 {[%clk 00:12:25]} {[%emt 00:00:33]} 1/2-1/2

[Event "ONJK DE"]
[Site "Enschede, Netherlands"]
[Date "2022.08.10"]
[Round "5.5"]
[White "Dijkhuijsen, Thomas"]
[Black "Vogels, Mathijs"]
[Result "1-0"]
[TimeControl "40min + 30sec/move"]
[WhiteElo "1306"]
[BlackElo "1283"]

1. e4 {[%clk 00:40:57]} {[%emt 00:00:02]} e5 {[%clk 00:40:55]} {[%emt
00:00:05]} 2. Nf3 {[%clk 00:41:21]} {[%emt 00:00:07]} Nc6 {[%clk 00:41:21]}
{[%emt 00:00:04]} 3. d4 {[%clk 00:41:47]} {[%emt 00:00:04]} exd4 {[%clk
00:41:45]} {[%emt 00:00:06]} 4. Nxd4 {[%clk 00:42:10]} {[%emt 00:00:06]} Bc5
{[%clk 00:42:10]} {[%emt 00:00:06]} 5. Be3 {[%clk 00:42:32]} {[%emt 00:00:07]}
Qf6 {[%clk 00:42:34]} {[%emt 00:00:07]} 6. c3 {[%clk 00:42:51]} {[%emt
00:00:11]} Nge7 {[%clk 00:42:30]} {[%emt 00:00:33]} 7. Bc4 {[%clk 00:42:56]}
{[%emt 00:00:25]} Ne5 {[%clk 00:41:31]} {[%emt 00:01:26]} 8. Nd2 {[%clk
00:42:45]} {[%emt 00:00:44]} Nxc4 {[%clk 00:41:10]} {[%emt 00:00:51]} 9. Nxc4
{[%clk 00:43:05]} {[%emt 00:00:10]} d5 {[%clk 00:40:47]} {[%emt 00:00:54]} 10.
exd5 {[%clk 00:42:01]} {[%emt 00:01:32]} Nxd5 {[%clk 00:41:01]} {[%emt
00:00:17]} 11. O-O {[%clk 00:41:48]} {[%emt 00:00:44]} O-O {[%clk 00:41:21]}
{[%emt 00:00:10]} 12. Nc2 {[%clk 00:39:48]} {[%emt 00:02:30]} Nxe3 {[%clk
00:41:08]} {[%emt 00:00:42]} 13. N2xe3 {[%clk 00:40:04]} {[%emt 00:00:15]} Qg5
{[%clk 00:39:23]} {[%emt 00:02:15]} 14. Qd5 {[%clk 00:39:39]} {[%emt 00:00:55]}
Bxe3 {[%clk 00:38:31]} {[%emt 00:01:22]} 15. Nxe3 {[%clk 00:39:54]} {[%emt
00:00:15]} Qxd5 {[%clk 00:38:09]} {[%emt 00:00:52]} 16. Nxd5 {[%clk 00:40:13]}
{[%emt 00:00:11]} c6 {[%clk 00:38:31]} {[%emt 00:00:08]} 17. Ne7+ {[%clk
00:39:56]} {[%emt 00:00:46]} Kh8 {[%clk 00:38:52]} {[%emt 00:00:09]} 18. Rfe1
{[%clk 00:40:10]} {[%emt 00:00:16]} Be6 {[%emt 00:02:28]} 19. f4 {[%clk
00:38:39]} Rfe8 {[%clk 00:38:17]} {[%emt 00:01:09]} 20. f5 {[%clk 00:38:58]}
{[%emt 00:00:11]} Rxe7 {[%clk 00:38:39]} {[%emt 00:00:07]} 21. fxe6 {[%clk
00:39:19]} {[%emt 00:00:10]} Rxe6 {[%clk 00:39:00]} {[%emt 00:00:09]} 22. Rxe6
{[%clk 00:39:38]} {[%emt 00:00:10]} fxe6 {[%clk 00:39:25]} {[%emt 00:00:05]} 23.
Rd1 {[%clk 00:39:48]} {[%emt 00:00:20]} g6 {[%clk 00:39:07]} {[%emt 00:00:49]}
24. Rd7 {[%clk 00:40:01]} {[%emt 00:00:17]} b6 {[%clk 00:38:49]} {[%emt
00:00:48]} 25. Rd6 {[%clk 00:40:04]} {[%emt 00:00:27]} c5 {[%clk 00:38:53]}
{[%emt 00:00:26]} 26. Rxe6 {[%clk 00:39:58]} {[%emt 00:00:35]} Rd8 {[%clk
00:39:13]} {[%emt 00:00:10]} 27. Kf1 {[%clk 00:39:48]} {[%emt 00:00:41]} Kg8
{[%clk 00:38:47]} {[%emt 00:00:56]} 28. Re7 {[%clk 00:39:54]} {[%emt 00:00:23]}
a6 {[%clk 00:38:53]} {[%emt 00:00:25]} 29. Re6 {[%clk 00:39:18]} {[%emt
00:01:05]} Rb8 {[%clk 00:39:08]} {[%emt 00:00:17]} 30. Ke2 {[%clk 00:39:05]}
{[%emt 00:00:41]} Kf7 {[%clk 00:39:27]} {[%emt 00:00:11]} 31. Rc6 {[%clk
00:38:59]} {[%emt 00:00:37]} Rb7 {[%clk 00:38:46]} {[%emt 00:01:11]} 32. Kd3
{[%clk 00:38:40]} {[%emt 00:00:48]} Ke7 {[%clk 00:38:33]} {[%emt 00:00:44]} 33.
Kc4 {[%clk 00:38:38]} {[%emt 00:00:32]} Kd7 {[%clk 00:38:35]} {[%emt 00:00:28]}
34. Kd5 {[%clk 00:38:37]} {[%emt 00:00:30]} Ke7 {[%clk 00:38:32]} {[%emt
00:00:34]} 35. a4 {[%clk 00:37:46]} {[%emt 00:01:20]} a5 {[%clk 00:38:20]}
{[%emt 00:00:42]} 36. Kc4 {[%clk 00:38:01]} {[%emt 00:00:15]} Rd7 {[%clk
00:37:00]} {[%emt 00:01:49]} 37. Rxb6 {[%clk 00:37:24]} {[%emt 00:01:07]} Rd2
{[%clk 00:37:19]} {[%emt 00:00:11]} 38. Kxc5 {[%clk 00:34:51]} {[%emt
00:03:03]} Rxg2 {[%clk 00:37:40]} {[%emt 00:00:10]} 39. b4 {[%clk 00:33:36]}
{[%emt 00:01:45]} Rxh2 {[%clk 00:37:37]} {[%emt 00:00:33]} 40. bxa5 {[%clk
00:33:46]} {[%emt 00:00:20]} g5 {[%clk 00:38:01]} {[%emt 00:00:06]} 41. a6
{[%clk 00:33:34]} {[%emt 00:00:42]} Rh4 {[%clk 00:37:33]} {[%emt 00:00:57]} 42.
c4 {[%clk 00:32:55]} {[%emt 00:01:10]} Rf4 {[%clk 00:37:11]} {[%emt 00:00:53]}
43. a7 {[%clk 00:33:09]} {[%emt 00:00:15]} Rf5+ {[%clk 00:37:22]} {[%emt
00:00:19]} 44. Kb4 {[%clk 00:33:28]} {[%emt 00:00:11]} Rf8 {[%clk 00:37:15]}
{[%emt 00:00:36]} 45. Rb8 {[%clk 00:33:44]} {[%emt 00:00:14]} Rxb8+ {[%clk
00:37:24]} {[%emt 00:00:21]} 46. axb8=Q {[%clk 00:33:45]} {[%emt 00:00:27]} g4
{[%clk 00:37:50]} {[%emt 00:00:06]} 47. Qf4 {[%clk 00:34:07]} {[%emt 00:00:09]}
h5 {[%clk 00:38:14]} {[%emt 00:00:05]} 48. Qg5+ {[%clk 00:34:24]} {[%emt
00:00:13]} Kd7 {[%emt 00:00:17]} 49. Qxh5 {[%clk 00:34:49]} {[%emt 00:00:03]}
g3 {[%clk 00:38:48]} {[%emt 00:00:11]} 50. Qg4+ {[%clk 00:35:13]} {[%emt
00:00:06]} Kc7 {[%clk 00:38:54]} {[%emt 00:00:25]} 51. Qxg3+ {[%clk 00:35:27]}
{[%emt 00:00:16]} Kb7 {[%clk 00:39:16]} {[%emt 00:00:08]} 52. Qd6 {[%clk
00:35:37]} {[%emt 00:00:19]} Ka7 {[%clk 00:39:30]} {[%emt 00:00:16]} 53. Qc6
{[%clk 00:35:32]} {[%emt 00:00:34]} Kb8 {[%clk 00:39:54]} {[%emt 00:00:08]} 54.
Qd7 {[%clk 00:35:52]} {[%emt 00:00:09]} Ka8 {[%clk 00:39:52]} {[%emt 00:00:32]}
55. Kb5 {[%clk 00:36:18]} {[%emt 00:00:04]} 1-0